fUSD/lending_fUSD_20240508
["ID","MTS","AMOUNT","RATE_DAILY","PERIOD"]
[326637933,1715178644458,-500.0,0.00027397,2]
[326637934,1715178644467,-500.0,0.00027397,2]
[326637935,1715178644477,-300.0,0.00027397,2]
[326637936,1715178644486,-500.0,0.00027397,2]
[326637937,1715178644496,-2583.26,0.00027397,2]
[326637938,1715178644505,-500.0,0.00027397,2]
[326637939,1715178644516,-1614.47,0.00027397,2]
[326637940,1715178644527,-1351.55,0.00027397,2]
[326637941,1715178644537,-2089.91,0.00027397,2]
[326637942,1715178644546,-411.01,0.00027397,2]
[326637943,1715178644556,-500.0,0.00027397,2]
[326637944,1715178644565,-500.0,0.00027397,2]
[326637945,1715178644575,-1359.42,0.00027397,2]
[326637946,1715178644584,-500.0,0.00027397,2]
[326637947,1715178644593,-500.0,0.00027397,2]
[326637948,1715178644604,-792.28,0.00027397,2]
[326637949,1715178644613,-1403.66,0.00027397,2]
[326637950,1715178644623,-1615.64,0.00027397,2]
[326637951,1715178644632,-3198.24,0.00027397,2]
[326637952,1715178644641,-1821.25,0.00027397,2]
[326637953,1715178644651,-500.0,0.00027397,2]
[326637954,1715178644661,-1552.0,0.00027397,2]
[326637955,1715178644671,-1386.49,0.00027397,2]
[326637956,1715178644680,-1485.99,0.00027397,2]
[326637957,1715178644690,-500.0,0.00027397,2]
[326637958,1715178644699,-500.0,0.00027397,2]
[326637959,1715178644709,-500.0,0.00027397,2]
[326637960,1715178644718,-221.13,0.00027397,2]
[326637961,1715178644728,-500.0,0.00027397,2]
[326637962,1715178644738,-500.0,0.00027397,2]
[326637963,1715178644747,-500.0,0.00027397,2]
[326637964,1715178644758,-1982.81,0.00027397,2]
[326637965,1715178644767,-500.0,0.00027397,2]
[326637966,1715178644776,-500.0,0.00027397,2]
[326637967,1715178644786,-500.0,0.00027397,2]
[326637968,1715178644796,-1717.79,0.00027397,2]
[326637969,1715178644805,-227.15,0.00027397,2]
[326637970,1715178644815,-500.0,0.00027397,2]
[326637971,1715178644825,-500.0,0.00027397,2]
[326637972,1715178644834,-500.0,0.00027397,2]
[326637973,1715178644844,-500.0,0.00027397,2]
[326637974,1715178644855,-1753.53,0.00027397,2]
[326637975,1715178644865,-857.84,0.00027397,2]
[326637976,1715178644874,-500.0,0.00027397,2]
[326637977,1715178644884,-500.0,0.00027397,2]
[326637978,1715178644893,-500.0,0.00027397,2]
[326637979,1715178644903,-359.92,0.00027397,2]
[326637980,1715178644913,-361.32,0.00027397,2]
[326637981,1715178644922,-500.0,0.00027397,2]
[326637982,1715178644932,-500.0,0.00027397,2]
[326637983,1715178644942,-346.67,0.00027397,2]
[326637984,1715178644951,-1090.87,0.00027397,2]
[326637985,1715178644962,-1384.38,0.00027397,2]
[326637986,1715178644973,-500.0,0.00027397,2]
[326637987,1715178644983,-500.0,0.00027397,2]
[326637988,1715178644992,-3129.18,0.00027397,2]
[326637989,1715178645002,-641.18,0.00027397,2]
[326637990,1715178645015,-165.88,0.00027397,2]
[326637991,1715178645039,-500.0,0.00027397,2]
[326637992,1715178645057,-500.0,0.00027397,2]
[326637993,1715178645083,-500.0,0.00027397,2]
[326637994,1715178645095,-500.0,0.00027397,2]
[326637995,1715178645109,-500.0,0.00027397,2]
[326637996,1715178645120,-1670.51,0.00027397,2]
[326637997,1715178645131,-500.0,0.00027397,2]
[326637998,1715178645141,-500.0,0.00027397,2]
[326637999,1715178645151,-500.0,0.00027397,2]
[326638000,1715178645160,-500.0,0.00027397,2]
[326638001,1715178645170,-500.0,0.00027397,2]
[326638002,1715178645180,-500.0,0.00027397,2]
[326638003,1715178645190,-500.0,0.00027397,2]
[326638004,1715178645199,-500.0,0.00027397,2]
[326638005,1715178645208,-500.0,0.00027397,2]
[326638006,1715178645217,-500.0,0.00027397,2]
[326638007,1715178645226,-396.76,0.00027397,2]
[326638008,1715178645236,-500.0,0.00027397,2]
[326638009,1715178645246,-500.0,0.00027397,2]
[326638010,1715178645256,-500.0,0.00027397,2]
[326638011,1715178645265,-500.0,0.00027397,2]
[326638012,1715178645274,-500.0,0.00027397,2]
[326638013,1715178645284,-500.0,0.00027397,2]
[326638014,1715178645293,-500.0,0.00027397,2]
[326638015,1715178645303,-2445.82,0.00027397,2]
[326638016,1715178645323,-500.0,0.00027397,2]
[326638017,1715178645333,-662.17,0.00027397,2]
[326638018,1715178645343,-580.5,0.00027397,2]
[326638019,1715178645355,-255.35,0.00027397,2]
[326638020,1715178645365,-500.0,0.00027397,2]
[326638021,1715178645375,-500.0,0.00027397,2]
[326638022,1715178645385,-500.0,0.00027397,2]
[326638023,1715178645395,-549.10708007,0.00027397,2]
[326638024,1715178645404,-2319.4,0.00027397,2]
[326638025,1715178645461,-191.13811194,0.00027397,2]
[326638026,1715178645471,-2373.24,0.00027397,2]
[326638027,1715178645481,-500.0,0.00027397,2]
[326638028,1715178645491,-500.0,0.00027397,2]
[326638029,1715178645501,-1771.27,0.00027397,2]
[326638030,1715178645511,-2932.44,0.00027397,2]
[326638031,1715178645520,-500.0,0.00027397,2]
[326638032,1715178645530,-769.42,0.00027397,2]
[326638033,1715178645540,-500.0,0.00027397,2]
[326638034,1715178645550,-500.0,0.00027397,2]
[326638035,1715178645559,-500.0,0.00027397,2]
[326638036,1715178645570,-596.68,0.00027397,2]
[326638037,1715178645580,-500.0,0.00027397,2]
[326638038,1715178645589,-500.0,0.00027397,2]
[326638039,1715178645599,-575.02,0.00027397,2]
[326638040,1715178645611,-347.04,0.00027397,2]
[326638041,1715178645620,-500.0,0.00027397,2]
[326638042,1715178645630,-500.0,0.00027397,2]
[326638043,1715178645639,-500.0,0.00027397,2]
[326638044,1715178645650,-2368.7,0.00027397,2]
[326638045,1715178645659,-500.0,0.00027397,2]
[326638046,1715178645669,-500.0,0.00027397,2]
[326638047,1715178645679,-500.0,0.00027397,2]
[326638048,1715178645689,-500.0,0.00027397,2]
[326638049,1715178645699,-500.0,0.00027397,2]
[326638050,1715178645708,-5150.92,0.00027397,2]
[326638051,1715178645718,-295.2,0.00027397,2]
[326638052,1715178645728,-500.0,0.00027397,2]
[326638053,1715178645738,-345.16,0.00027397,2]
[326638054,1715178645748,-500.0,0.00027397,2]
[326638055,1715178645758,-500.0,0.00027397,2]
[326638056,1715178645768,-500.0,0.00027397,2]
[326638057,1715178645778,-500.0,0.00027397,2]
[326638058,1715178645790,-2958.46,0.00027397,2]
[326638059,1715178645800,-500.0,0.00027397,2]
[326638060,1715178645811,-500.0,0.00027397,2]
[326638061,1715178645821,-2638.49,0.00027397,2]
[326638062,1715178645831,-500.0,0.00027397,2]
[326638063,1715178645840,-500.0,0.00027397,2]
[326638064,1715178645850,-1489.53,0.00027397,2]
[326638065,1715178645862,-500.0,0.00027397,2]
[326638066,1715178645872,-500.0,0.00027397,2]
[326638067,1715178645881,-2111.09,0.00027397,2]
[326638068,1715178645891,-359.54,0.00027397,2]
[326638069,1715178645901,-852.99,0.00027397,2]
[326638070,1715178645910,-500.0,0.00027397,2]
[326638071,1715178645920,-500.0,0.00027397,2]
[326638072,1715178645929,-500.0,0.00027397,2]
[326638073,1715178645939,-500.0,0.00027397,2]
[326638074,1715178645949,-500.0,0.00027397,2]
[326638075,1715178645958,-150.0,0.00027397,2]
[326638076,1715178645968,-162.15857421,0.000274,2]
[326638077,1715178645978,-168.67351244,0.00027406,2]
[326638078,1715178645988,-1258.53145835,0.00027469,2]
[326638079,1715178645998,-200.0,0.00027476,2]
[326638080,1715178646009,-1000.0,0.00027476,10]
[326638081,1715178646020,-500.0,0.00027476,2]
[326638082,1715178646030,-200.0,0.00027476,2]
[326638083,1715178646040,-1258.53145835,0.00027555,2]
[326638084,1715178646051,-162.15857421,0.00027567,2]
[326638085,1715178646061,-168.67351244,0.00027571,2]
[326638086,1715178646070,-31361.81295364,0.0002758,2]
[326638087,1715178646080,-162.15857421,0.00027733,2]
[326638088,1715178646090,-168.67351244,0.00027735,2]
[326638089,1715178646102,-200.0,0.00027773,2]
[326638090,1715178646113,-1000.0,0.00027773,10]
[326638091,1715178646123,-500.0,0.00027773,2]
[326638093,1715178646132,-150.72,0.00027786,2]
[326638095,1715178646142,-500.0,0.00027845,2]
[326638096,1715178646152,-500.0,0.00027845,2]
[326638098,1715178646162,-500.0,0.00027845,2]
[326638100,1715178646172,-500.0,0.00027845,2]
[326638101,1715178646181,-500.0,0.00027845,2]
[326638103,1715178646191,-500.0,0.00027845,2]
[326638104,1715178646201,-500.0,0.00027845,2]
[326638105,1715178646211,-3500.94133622,0.00027877,2]
[326638106,1715178646220,-1561.86172371,0.00027878,2]
[326638107,1715178646230,-2949.16,0.00027899,5]
[326638108,1715178646239,-21034.9533,0.000279,2]
[326638109,1715178646249,-16841.6037,0.000279,2]
[326638110,1715178646259,-1912.7122,0.000279,2]
[326638111,1715178646269,-484.30016527,0.000279,7]
[326638112,1715178646279,-484.30016527,0.000279,7]
[326638113,1715178646288,-484.30016527,0.000279,7]
[326638114,1715178646298,-484.30016527,0.000279,7]
[326638115,1715178646308,-484.30016527,0.000279,7]
[326638116,1715178646317,-484.30016527,0.000279,7]
[326638117,1715178646328,-484.30016527,0.000279,7]
[326638118,1715178646338,-484.30016527,0.000279,7]
[326638119,1715178646348,-484.30016527,0.000279,7]
[326638120,1715178646358,-484.30016527,0.000279,7]
[326638121,1715178646368,-484.30016527,0.000279,7]
[326638122,1715178646378,-484.30016527,0.000279,7]
[326638123,1715178646388,-484.30016527,0.000279,7]
[326638124,1715178646398,-484.30016527,0.000279,7]
[326638125,1715178646408,-484.30016527,0.000279,7]
[326638126,1715178646418,-484.30016527,0.000279,7]
[326638127,1715178646428,-484.30016527,0.000279,7]
[326638128,1715178646438,-484.30016527,0.000279,7]
[326638129,1715178646452,-484.30016527,0.000279,7]
[326638130,1715178646462,-484.8,0.000279,7]
[326638131,1715178646471,-159.27179242,0.000279,7]
[326638132,1715178646481,-159.27179242,0.000279,7]
[326638133,1715178646491,-159.27179242,0.000279,7]
[326638134,1715178646501,-159.27179242,0.000279,7]
[326638135,1715178646510,-159.27179242,0.000279,7]
[326638136,1715178646522,-159.27179242,0.000279,7]
[326638137,1715178646532,-159.27179242,0.000279,7]
[326638138,1715178646542,-159.27179242,0.000279,7]
[326638139,1715178646552,-159.27179242,0.000279,7]
[326638140,1715178646561,-159.27179242,0.000279,7]
[326638141,1715178646571,-159.27179242,0.000279,7]
[326638142,1715178646581,-159.27179242,0.000279,7]
[326638143,1715178646591,-159.27179242,0.000279,7]
[326638144,1715178646601,-159.77,0.000279,7]
[326638145,1715178646613,-168.67351244,0.000279,2]
[326638146,1715178646624,-162.15857421,0.000279,2]
[326638147,1715178646636,-1575.99723543,0.000279,7]
[326638148,1715178646647,-1575.99723543,0.000279,7]
[326638149,1715178646658,-224.28811224,0.000279,2]
[326638150,1715178646668,-1575.99723543,0.000279,7]
[326638151,1715178646679,-1575.99723543,0.000279,7]
[326638152,1715178646688,-1575.99723543,0.000279,7]
[326638153,1715178646699,-1575.99723543,0.000279,7]
[326638154,1715178646708,-1575.99723543,0.000279,7]
[326638155,1715178646718,-1575.99723543,0.000279,7]
[326638156,1715178646729,-1575.99723543,0.000279,7]
[326638157,1715178646739,-1575.99723543,0.000279,7]
[326638158,1715178646749,-1575.99723543,0.000279,7]
[326638159,1715178646759,-1575.99723543,0.000279,7]
[326638160,1715178646769,-1575.99723543,0.000279,7]
[326638161,1715178646778,-1575.99723543,0.000279,7]
[326638162,1715178646788,-1575.99723543,0.000279,7]
[326638163,1715178646797,-1575.99723543,0.000279,7]
[326638164,1715178646810,-1575.99723543,0.000279,7]
[326638165,1715178646822,-1575.99723543,0.000279,7]
[326638166,1715178646832,-1575.99723543,0.000279,7]
[326638167,1715178646842,-1576.49,0.000279,7]
[326638168,1715178646852,-383.65977764,0.000279,2]
[326638169,1715178646864,-591.74557445,0.000279,7]
[326638170,1715178646875,-591.74557445,0.000279,7]
[326638171,1715178646884,-591.74557445,0.000279,7]
[326638172,1715178646895,-591.74557445,0.000279,7]
[326638173,1715178646905,-356.43472155,0.000279,14]
[326638174,1715178646915,-591.74557445,0.000279,7]
[326638175,1715178646924,-591.74557445,0.000279,7]
[326638176,1715178646934,-591.74557445,0.000279,7]
[326638177,1715178646943,-591.74557445,0.000279,7]
[326638178,1715178646953,-591.74557445,0.000279,7]
[326638179,1715178646962,-591.74557445,0.000279,7]
[326638180,1715178646971,-591.74557445,0.000279,7]
[326638181,1715178646981,-591.74557445,0.000279,7]
[326638182,1715178646990,-591.74557445,0.000279,7]
[326638183,1715178646999,-591.74557445,0.000279,7]
[326638184,1715178647140,-591.74557445,0.000279,7]
[326638185,1715178647164,-591.74557445,0.000279,7]
[326638186,1715178647173,-591.74557445,0.000279,7]
[326638187,1715178647182,-591.74557445,0.000279,7]
[326638188,1715178647192,-591.74557445,0.000279,7]
[326638189,1715178647202,-592.24,0.000279,7]
[326638190,1715178647211,-291.99021104,0.000279,2]
[326638191,1715178647220,-171.95,0.00027945,5]
[326638192,1715178647230,-642.48,0.00027945,5]
[326638193,1715178647239,-2300.94,0.00027945,5]
[326638194,1715178647248,-640.45,0.00027945,5]
[326638195,1715178647258,-1554.9,0.00027945,5]
[326638196,1715178647267,-1659.82,0.00027945,5]
[326638197,1715178647276,-500.0,0.00027945,5]
[326638198,1715178647286,-763.95,0.00027945,5]
[326638199,1715178647295,-500.0,0.00027945,5]
[326638200,1715178647305,-500.0,0.00027945,5]
[326638201,1715178647314,-500.0,0.00027945,5]
[326638202,1715178647323,-2583.26,0.00027945,5]
[326638203,1715178647332,-500.0,0.00027945,5]
[326638204,1715178647342,-1614.47,0.00027945,5]
[326638205,1715178647351,-2089.91,0.00027945,5]
[326638206,1715178647362,-1351.55,0.00027945,5]
[326638207,1715178647371,-500.0,0.00027945,5]
[326638208,1715178647384,-500.0,0.00027945,5]
[326638209,1715178647411,-1359.42,0.00027945,5]
[326638210,1715178647433,-500.0,0.00027945,5]
[326638211,1715178647446,-500.0,0.00027945,5]
[326638212,1715178647474,-792.28,0.00027945,5]
[326638213,1715178647512,-1403.66,0.00027945,5]
[326638214,1715178647524,-1615.64,0.00027945,5]
[326638215,1715178647548,-3198.24,0.00027945,5]
[326638216,1715178647565,-1821.25,0.00027945,5]
[326638217,1715178647581,-500.0,0.00027945,5]
[326638218,1715178647601,-1552.0,0.00027945,5]
[326638219,1715178647623,-1386.49,0.00027945,5]
[326638220,1715178647644,-1485.99,0.00027945,5]
[326638221,1715178647666,-500.0,0.00027945,5]
[326638222,1715178647687,-500.0,0.00027945,5]
[326638223,1715178647708,-378.85,0.00027945,5]
[326638224,1715178647719,-500.0,0.00027945,5]
[326638225,1715178647730,-500.0,0.00027945,5]
[326638226,1715178647741,-355.89,0.00027945,5]
[326638227,1715178647752,-500.0,0.00027945,5]
[326638228,1715178647762,-1982.81,0.00027945,5]
[326638229,1715178647771,-500.0,0.00027945,5]
[326638230,1715178647780,-500.0,0.00027945,5]
[326638231,1715178647790,-1717.79,0.00027945,5]
[326638232,1715178647799,-357.32,0.00027945,5]
[326638233,1715178647808,-500.0,0.00027945,5]
[326638234,1715178647818,-500.0,0.00027945,5]
[326638235,1715178647828,-500.0,0.00027945,5]
[326638236,1715178647837,-1753.53,0.00027945,5]
[326638237,1715178647846,-857.84,0.00027945,5]
[326638238,1715178647856,-500.0,0.00027945,5]
[326638239,1715178647865,-369.82,0.00027945,5]
[326638240,1715178647874,-500.0,0.00027945,5]
[326638241,1715178647884,-500.0,0.00027945,5]
[326638242,1715178647893,-227.66,0.00027945,5]
[326638243,1715178647903,-1090.87,0.00027945,5]
[326638244,1715178647912,-1384.38,0.00027945,5]
[326638245,1715178647921,-500.0,0.00027945,5]
[326638246,1715178647930,-3129.18,0.00027945,5]
[326638247,1715178647940,-500.0,0.00027945,5]
[326638248,1715178647949,-500.0,0.00027945,5]
[326638249,1715178647958,-404.25,0.00027945,5]
[326638250,1715178647967,-500.0,0.00027945,5]
[326638251,1715178647976,-500.0,0.00027945,5]
[326638252,1715178647986,-500.0,0.00027945,5]
[326638253,1715178647995,-1670.51,0.00027945,5]
[326638254,1715178648005,-618.09,0.00027945,5]
[326638255,1715178648018,-500.0,0.00027945,5]
[326638256,1715178648027,-482.66,0.00027945,5]
[326638257,1715178648037,-500.0,0.00027945,5]
[326638258,1715178648049,-500.0,0.00027945,5]
[326638259,1715178648065,-352.3,0.00027945,5]
[326638260,1715178648075,-500.0,0.00027945,5]
[326638261,1715178648085,-500.0,0.00027945,5]
[326638262,1715178648097,-500.0,0.00027945,5]
[326638263,1715178648108,-500.0,0.00027945,5]
[326638264,1715178648117,-500.0,0.00027945,5]
[326638265,1715178648127,-500.0,0.00027945,5]
[326638266,1715178648136,-594.84,0.00027945,5]
[326638267,1715178648146,-500.0,0.00027945,5]
[326638268,1715178648156,-500.0,0.00027945,5]
[326638269,1715178648165,-500.0,0.00027945,5]
[326638270,1715178648175,-500.0,0.00027945,5]
[326638271,1715178648186,-2445.82,0.00027945,5]
[326638272,1715178648195,-500.0,0.00027945,5]
[326638273,1715178648205,-662.17,0.00027945,5]
[326638274,1715178648214,-580.5,0.00027945,5]
[326638275,1715178648224,-500.0,0.00027945,5]
[326638276,1715178648233,-500.0,0.00027945,5]
[326638277,1715178648242,-500.0,0.00027945,5]
[326638278,1715178648252,-2319.4,0.00027945,5]
[326638279,1715178648262,-2373.24,0.00027945,5]
[326638280,1715178648271,-500.0,0.00027945,5]
[326638281,1715178648280,-500.0,0.00027945,5]
[326638282,1715178648291,-1771.27,0.00027945,5]
[326638283,1715178648300,-2932.44,0.00027945,5]
[326638284,1715178648310,-500.0,0.00027945,5]
[326638285,1715178648320,-769.42,0.00027945,5]
[326638286,1715178648329,-500.0,0.00027945,5]
[326638287,1715178648339,-500.0,0.00027945,5]
[326638288,1715178648348,-500.0,0.00027945,5]
[326638289,1715178648359,-500.0,0.00027945,5]
[326638290,1715178648369,-500.0,0.00027945,5]
[326638291,1715178648378,-500.0,0.00027945,5]
[326638292,1715178648388,-500.0,0.00027945,5]
[326638293,1715178648397,-500.0,0.00027945,5]
[326638294,1715178648407,-2368.7,0.00027945,5]
[326638295,1715178648417,-500.0,0.00027945,5]
[326638296,1715178648427,-500.0,0.00027945,5]
[326638297,1715178648437,-500.0,0.00027945,5]
[326638298,1715178648446,-500.0,0.00027945,5]
[326638299,1715178648455,-500.0,0.00027945,5]
[326638300,1715178648466,-5150.92,0.00027945,5]
[326638301,1715178648476,-500.0,0.00027945,5]
[326638302,1715178648485,-500.0,0.00027945,5]
[326638303,1715178648495,-383.21,0.00027945,5]
[326638304,1715178648504,-500.0,0.00027945,5]
[326638305,1715178648514,-500.0,0.00027945,5]
[326638306,1715178648524,-2958.46,0.00027945,5]
[326638307,1715178648533,-500.0,0.00027945,5]
[326638308,1715178648543,-500.0,0.00027945,5]
[326638309,1715178648552,-500.0,0.00027945,5]
[326638310,1715178648562,-2638.49,0.00027945,5]
[326638311,1715178648571,-500.0,0.00027945,5]
[326638312,1715178648583,-1489.53,0.00027945,5]
[326638316,1715178648593,-500.0,0.00027945,5]
[326638319,1715178648603,-500.0,0.00027945,5]
[326638324,1715178648616,-2111.09,0.00027945,5]
[326638327,1715178648626,-852.99,0.00027945,5]
[326638335,1715178648636,-500.0,0.00027945,5]
[326638340,1715178648646,-500.0,0.00027945,5]
[326638346,1715178648656,-500.0,0.00027945,5]
[326638351,1715178648665,-500.0,0.00027945,5]
[326638355,1715178648675,-500.0,0.00027945,5]
[326638358,1715178648685,-2231.98446726,0.00027973,2]
[326638361,1715178648695,-3557.44847317,0.00027997,2]
[326638362,1715178648704,-155.84883752,0.00027998,2]
[326638364,1715178648714,-565.97075199,0.00027998,2]
[326638367,1715178648723,-155.77020411,0.00027998,2]
[326638369,1715178648733,-305.77744355,0.00027998,2]
[326638371,1715178648742,-155.61637897,0.00027998,2]
[326638372,1715178648752,-184.39684103,0.00027998,2]
[326638374,1715178648762,-296.18578498,0.00027998,2]
[326638376,1715178648772,-623.74002,0.00027998,2]
[326638379,1715178648782,-208.04498106,0.00027998,2]
[326638380,1715178648792,-239.96976669,0.00027998,2]
[326638382,1715178648801,-250.93019258,0.00027998,2]
[326638384,1715178648812,-228.69089277,0.00027998,2]
[326638386,1715178648821,-711.12583595,0.00027998,2]
[326638388,1715178648831,-1880.20024649,0.00027998,5]
[326638390,1715178648841,-1002.59231889,0.00027998,2]
[326638392,1715178648852,-395.95263356,0.00027998,2]
[326638394,1715178648862,-155.0,0.00027998,2]
[326638396,1715178648872,-211.42088076,0.00027998,2]
[326638398,1715178648882,-781.72439297,0.00027998,2]
[326638400,1715178648891,-787.58875702,0.00027998,2]
[326638402,1715178648901,-178.14155541,0.00027998,2]
[326638404,1715178648911,-369.47323478,0.00027998,7]
[326638406,1715178648920,-2478.78749712,0.00027998,2]
[326638408,1715178648930,-1585.70936532,0.00027998,2]
[326638410,1715178648940,-268.47134498,0.00027998,2]
[326638412,1715178648952,-155.31637188,0.00027998,2]
[326638414,1715178648962,-224.8818667,0.00027998,2]
[326638416,1715178648972,-570.2723895,0.00027998,2]
[326638418,1715178648981,-21516.4024324,0.00027998,2]
[326638420,1715178648991,-1608.9461182,0.00027998,2]
[326638422,1715178649000,-14473.1508315,0.00027998,2]
[326638424,1715178649014,-749.49772,0.00027998,2]
[326638427,1715178649024,-982.72910362,0.00027999,2]
[326638428,1715178649034,-155.24178953,0.00027999,2]
[326638430,1715178649044,-1614.47,0.00027999,5]
[326638433,1715178649054,-500.0,0.00027999,5]
[326638435,1715178649064,-192.81,0.00027999,5]
[326638437,1715178649074,-1456.08,0.00027999,5]
[326638438,1715178649084,-159.7380681,0.00027999,5]
[326638441,1715178649096,-156.93,0.00027999,5]
[326638442,1715178649106,-502.89580193,0.00027999,5]
[326638445,1715178649118,-1030.79,0.00027999,5]
[326638447,1715178649128,-988.0,0.00027999,3]
[326638448,1715178649138,-1633.67,0.00027999,5]
[326638451,1715178649148,-430.81,0.00027999,5]
[326638452,1715178649158,-638.98,0.00027999,5]
[326638455,1715178649169,-500.0,0.00027999,5]
[326638457,1715178649179,-1039.0,0.00028,5]
[326638459,1715178649190,-40961.79426503,0.00028,7]
[326638461,1715178649199,-1338.27011967,0.00028,7]
[326638463,1715178649208,-337109.05268203,0.00028,7]
[326638465,1715178649228,-1431.72997456,0.00028,7]
[326638468,1715178649240,-1178.11148733,0.00028,7]
[326638470,1715178649252,-264.9385,0.00028,7]
[326638472,1715178649264,-517.43535858,0.00028,7]
[326638518,1715178649799,-168.88,0.00027387,2]
[326638520,1715178649809,-500.0,0.00027397,2]
[326638522,1715178649819,-383.67952196,0.00027397,2]
[326638524,1715178649831,-116.32047804,0.00027397,2]
[326638526,1715178649840,-1258.53145835,0.00027642,2]
[326638528,1715178649850,-182.59806361,0.00027799,2]
[326638531,1715178649864,-141.51229165,0.00027799,2]
[326638533,1715178649873,-168.88,0.00027935,2]
[326638535,1715178649883,-538.35,0.00027945,5]
[326638537,1715178649892,-500.0,0.00027945,5]
[326638539,1715178649901,-168.88,0.0002799,2]
[326638540,1715178649910,-2933.5220424,0.00028,7]
[326638543,1715178649921,-3207.40705,0.00028,7]
[326638545,1715178649932,-188332.49407884,0.00028,7]
[326638547,1715178649943,-1282.26,0.00028,7]
[326638549,1715178649954,-318.44016882,0.00028,7]
[326638562,1715178650065,-1609.56870861,0.00028,7]
[326638564,1715178650078,-1798.07131388,0.00028,7]
[326639756,1715179838685,-220.5413736,0.00012047,2]
[326639758,1715179838695,-155.0,0.00012047,2]
[326639761,1715179838704,-305.87346187,0.00012048,2]
[326639763,1715179838713,-236.96292099,0.00012049,2]
[326639765,1715179838723,-370.64169663,0.0001205,2]
[326639767,1715179838732,-481.48199999,0.00012051,2]
[326639769,1715179838742,-659.7380681,0.00012675,2]
[326639772,1715179838751,-155.0,0.00012676,2]
[326639775,1715179838760,-666.9861521,0.0001278,2]
[326639790,1715179839085,-20.98959191,0.0001278,2]
[326639791,1715179839095,-1270.91791019,0.00012782,2]
[326639792,1715179839107,-767.73050189,0.00012782,2]
[326639793,1715179839119,-5443.28980792,0.00012782,2]
[326639794,1715179839129,-251.74141407,0.00012868,2]
[326639795,1715179839138,-2684.26,0.00012873,2]
[326639796,1715179839148,-271.9617,0.000129,2]
[326639797,1715179839159,-2132.9774,0.000129,2]
[326639798,1715179839169,-688.83236886,0.000129,2]
[326639799,1715179839179,-2231.98446726,0.00012987,2]
[326639800,1715179839188,-166.64,0.0001299,2]
[326639801,1715179839197,-166.64,0.0001299,2]
[326639802,1715179839206,-166.64,0.0001299,2]
[326639803,1715179839215,-166.64,0.0001299,2]
[326639804,1715179839226,-166.64,0.0001299,2]
[326639805,1715179839236,-151.29,0.0001299,2]
[326639806,1715179839246,-151.29,0.0001299,2]
[326639807,1715179839255,-151.29,0.0001299,2]
[326639808,1715179839265,-151.29,0.0001299,2]
[326639809,1715179839275,-151.29,0.0001299,2]
[326639810,1715179839285,-151.29,0.0001299,2]
[326639811,1715179839294,-151.29,0.0001299,2]
[326639812,1715179839304,-250.83906553,0.0001299,2]
[326639813,1715179839314,-151.29,0.0001299,2]
[326639814,1715179839323,-151.29,0.0001299,2]
[326639815,1715179839333,-845.25607623,0.00012998,2]
[326639816,1715179839342,-221.57928681,0.00012998,2]
[326639817,1715179839352,-613.40550781,0.00012998,2]
[326639818,1715179839361,-174.84052728,0.00012998,2]
[326639819,1715179839370,-162.07402568,0.00012998,2]
[326639820,1715179839380,-46.00064815,0.00012998,2]
[326639821,1715179839392,-263.54833731,0.00012998,2]